[Event "December 12 Early 2023"]
[Site "https://www.chess.com"]
[Date "2023.12.12"]
[Round "3"]
[White "JG-17"]
[Black "Rojas Alarcon, Julian Antonio"]
[Result "1-0"]
[Board "102"]
[TimeControl "180+1"]
[BlackFideId "5107407"]
[WhiteElo "2448"]
[BlackElo "2632"]
[BlackTeam "MEX"]
[WhiteClock "0:00:26"]
[BlackClock "0:00:14"]

1. d4 {[%clk 0:03:00]}  Nf6 {[%clk 0:02:58]} 2. c4 {[%clk 0:03:01]}  e6 {[%clk 0:02:58]} 3. Nc3 {[%clk 0:03:02]}  Bb4 {[%clk 0:02:58]} 4. Nf3 {[%clk 0:03:01]}  b6 {[%clk 0:02:58]} 5. e3 {[%clk 0:03:01]}  Bb7 {[%clk 0:02:58]} 6. Bd2 {[%clk 0:02:58]}  O-O {[%clk 0:02:57]} 7. Bd3 {[%clk 0:02:59]}  Qe7 {[%clk 0:02:57]} 8. O-O {[%clk 0:02:58]}  d6 {[%clk 0:02:54]} 9. b3 {[%clk 0:02:56]}  Nbd7 {[%clk 0:02:52]} 10. Qc2 {[%clk 0:02:51]}  Bxc3 {[%clk 0:02:51]} 11. Bxc3 {[%clk 0:02:51]}  e5 {[%clk 0:02:52]} 12. Nd2 {[%clk 0:02:32]}  e4 {[%clk 0:02:46]} 13. Be2 {[%clk 0:02:31]}  a5 {[%clk 0:02:47]} 14. Rae1 {[%clk 0:02:27]}  Rfe8 {[%clk 0:02:44]} 15. d5 {[%clk 0:02:23]}  c6 {[%clk 0:02:38]} 16. dxc6 {[%clk 0:02:16]}  Bxc6 {[%clk 0:02:39]} 17. f3 {[%clk 0:02:16]}  Rac8 {[%clk 0:02:32]} 18. Nxe4 {[%clk 0:02:15]}  Nxe4 {[%clk 0:02:32]} 19. fxe4 {[%clk 0:02:15]}  Bxe4 {[%clk 0:02:32]} 20. Bd3 {[%clk 0:02:06]}  Nc5 {[%clk 0:02:10]} 21. Bxe4 {[%clk 0:02:04]}  Nxe4 {[%clk 0:02:11]} 22. Bd4 {[%clk 0:01:59]}  b5 {[%clk 0:02:10]} 23. Qd3 {[%clk 0:01:54]}  bxc4 {[%clk 0:02:09]} 24. bxc4 {[%clk 0:01:55]}  Rc6 {[%clk 0:02:03]} 25. Rf5 {[%clk 0:01:54]}  Qe6 {[%clk 0:02:02]} 26. Rxa5 {[%clk 0:01:50]}  Rxc4 {[%clk 0:01:59]} 27. Ra7 {[%clk 0:01:44]}  d5 {[%clk 0:01:49]} 28. a4 {[%clk 0:01:42]}  Nd6 {[%clk 0:01:40]} 29. Rf1 {[%clk 0:01:36]}  f6 {[%clk 0:01:32]} 30. Ra6 {[%clk 0:01:22]}  Qd7 {[%clk 0:01:32]} 31. Ra7 {[%clk 0:01:19]}  Qe6 {[%clk 0:01:05]} 32. Ra6 {[%clk 0:01:19]}  Qe4 {[%clk 0:00:54]} 33. Qxe4 {[%clk 0:01:11]}  Nxe4 {[%clk 0:00:55]} 34. Rb1 {[%clk 0:01:00]}  Re7 {[%clk 0:00:49]} 35. a5 {[%clk 0:00:56]}  h5 {[%clk 0:00:44]} 36. Ra8+ {[%clk 0:00:56]}  Kh7 {[%clk 0:00:44]} 37. a6 {[%clk 0:00:57]}  Rec7 {[%clk 0:00:41]} 38. h4 {[%clk 0:00:47]}  Rc1+ {[%clk 0:00:29]} 39. Rxc1 {[%clk 0:00:47]}  Rxc1+ {[%clk 0:00:30]} 40. Kh2 {[%clk 0:00:48]}  Nf2 {[%clk 0:00:28]} 41. a7 {[%clk 0:00:46]}  Rh1+ {[%clk 0:00:24]} 42. Kg3 {[%clk 0:00:46]}  Ne4+ {[%clk 0:00:24]} 43. Kf3 {[%clk 0:00:44]}  Rf1+ {[%clk 0:00:20]} 44. Ke2 {[%clk 0:00:44]}  Rf2+ {[%clk 0:00:21]} 45. Ke1 {[%clk 0:00:42]}  Ra2 {[%clk 0:00:20]} 46. Rb8 {[%clk 0:00:34]}  Nf2 {[%clk 0:00:17]} 47. a8=Q {[%clk 0:00:27]}  Nd3+ {[%clk 0:00:17]} 48. Kf1 {[%clk 0:00:25]}  Rc2 {[%clk 0:00:16]} 49. Rh8+ {[%clk 0:00:24]}  Kg6 {[%clk 0:00:16]} 50. Qe8+ {[%clk 0:00:25]}  Kf5 {[%clk 0:00:16]} 51. Rxh5+ {[%clk 0:00:25]}  Kg4 {[%clk 0:00:14]} 52. Qg6# {[%clk 0:00:26]} 1-0

[Event "December 12 Early 2023"]
[Site "https://www.chess.com"]
[Date "2023.12.12"]
[Round "3"]
[White "Pourkashiyan, Atousa"]
[Black "Manukyan, Sargis A."]
[Result "1-0"]
[Board "105"]
[TimeControl "180+1"]
[WhiteFideId "12502014"]
[BlackFideId "13303970"]
[WhiteElo "2434"]
[BlackElo "2627"]
[WhiteTeam "USA"]
[BlackTeam "ARM"]
[WhiteClock "0:00:14"]
[BlackClock "0:00:13"]

1. e4 {[%clk 0:02:47]}  c5 {[%clk 0:02:59]} 2. Nf3 {[%clk 0:02:46]}  d6 {[%clk 0:03:00]} 3. d4 {[%clk 0:02:46]}  cxd4 {[%clk 0:03:01]} 4. Nxd4 {[%clk 0:02:47]}  Nf6 {[%clk 0:03:02]} 5. Nc3 {[%clk 0:02:48]}  g6 {[%clk 0:03:02]} 6. Be3 {[%clk 0:02:44]}  Bg7 {[%clk 0:03:02]} 7. f3 {[%clk 0:02:45]}  O-O {[%clk 0:03:03]} 8. Qd2 {[%clk 0:02:45]}  Nc6 {[%clk 0:03:03]} 9. O-O-O {[%clk 0:02:45]}  d5 {[%clk 0:03:03]} 10. exd5 {[%clk 0:02:40]}  Nxd5 {[%clk 0:03:03]} 11. Nxc6 {[%clk 0:02:40]}  bxc6 {[%clk 0:03:04]} 12. Bd4 {[%clk 0:02:41]}  e5 {[%clk 0:03:03]} 13. Bc5 {[%clk 0:02:42]}  Be6 {[%clk 0:03:03]} 14. Bc4 {[%clk 0:02:26]}  Qh4 {[%clk 0:03:00]} 15. Bxd5 {[%clk 0:01:51]}  cxd5 {[%clk 0:02:57]} 16. Bxf8 {[%clk 0:01:51]}  Rxf8 {[%clk 0:02:54]} 17. Nxd5 {[%clk 0:01:33]}  Rb8 {[%clk 0:02:20]} 18. Kb1 {[%clk 0:01:12]}  Qa4 {[%clk 0:02:06]} 19. b3 {[%clk 0:00:42]}  Qa3 {[%clk 0:01:57]} 20. Qc1 {[%clk 0:00:41]}  Qc5 {[%clk 0:01:50]} 21. Qe3 {[%clk 0:00:28]}  Qa3 {[%clk 0:01:45]} 22. Qc1 {[%clk 0:00:16]}  Qa5 {[%clk 0:01:45]} 23. Qd2 {[%clk 0:00:15]}  Qd8 {[%clk 0:01:22]} 24. Nc3 {[%clk 0:00:14]}  Qc7 {[%clk 0:01:19]} 25. Ne4 {[%clk 0:00:14]}  Rc8 {[%clk 0:01:14]} 26. Rc1 {[%clk 0:00:13]}  Bf8 {[%clk 0:01:09]} 27. Rhd1 {[%clk 0:00:12]}  Ba3 {[%clk 0:01:08]} 28. Qh6 {[%clk 0:00:12]}  Qe7 {[%clk 0:00:51]} 29. Ng5 {[%clk 0:00:12]}  f6 {[%clk 0:00:42]} 30. Nxe6 {[%clk 0:00:13]}  Qxe6 {[%clk 0:00:36]} 31. Qd2 {[%clk 0:00:13]}  Bxc1 {[%clk 0:00:29]} 32. Kxc1 {[%clk 0:00:14]}  Qe7 {[%clk 0:00:20]} 33. Qd7 {[%clk 0:00:13]}  Qc5 {[%clk 0:00:16]} 34. Qe6+ {[%clk 0:00:13]}  Kg7 {[%clk 0:00:15]} 35. Rd7+ {[%clk 0:00:13]}  Kh6 {[%clk 0:00:13]} 36. Qh3+ {[%clk 0:00:13]}  Kg5 {[%clk 0:00:14]} 37. Qg4+ {[%clk 0:00:14]}  Kh6 {[%clk 0:00:13]} 38. Qh4# {[%clk 0:00:14]} 1-0

[Event "December 12 Early 2023"]
[Site "https://www.chess.com"]
[Date "2023.12.12"]
[Round "3"]
[White "Antunez Soler, Luis"]
[Black "Dmitrenko, Viktor"]
[Result "0-1"]
[Board "106"]
[TimeControl "180+1"]
[WhiteFideId "3513335"]
[BlackFideId "14110270"]
[WhiteElo "2626"]
[BlackElo "2431"]
[WhiteTeam "CUB"]
[BlackTeam "UKR"]
[WhiteClock "0:00:00"]
[BlackClock "0:00:03"]

1. e4 {[%clk 0:03:00]}  e6 {[%clk 0:03:00]} 2. d4 {[%clk 0:03:00]}  d5 {[%clk 0:02:59]} 3. Nc3 {[%clk 0:03:00]}  Bb4 {[%clk 0:02:58]} 4. e5 {[%clk 0:03:00]}  Ne7 {[%clk 0:02:56]} 5. a3 {[%clk 0:03:00]}  Bxc3+ {[%clk 0:02:56]} 6. bxc3 {[%clk 0:03:01]}  c5 {[%clk 0:02:56]} 7. h4 {[%clk 0:03:01]}  Qa5 {[%clk 0:02:52]} 8. Bd2 {[%clk 0:03:00]}  Qa4 {[%clk 0:02:52]} 9. Nf3 {[%clk 0:03:01]}  b6 {[%clk 0:02:50]} 10. h5 {[%clk 0:03:00]}  h6 {[%clk 0:02:50]} 11. Rh4 {[%clk 0:03:00]}  Nf5 {[%clk 0:02:40]} 12. Rf4 {[%clk 0:02:59]}  cxd4 {[%clk 0:01:55]} 13. cxd4 {[%clk 0:02:42]}  Ba6 {[%clk 0:01:52]} 14. g4 {[%clk 0:02:02]}  Ne7 {[%clk 0:01:50]} 15. Bb4 {[%clk 0:02:02]}  Nbc6 {[%clk 0:01:42]} 16. Bd6 {[%clk 0:02:00]}  Bxf1 {[%clk 0:01:36]} 17. Kxf1 {[%clk 0:01:59]}  Rc8 {[%clk 0:01:36]} 18. Qd2 {[%clk 0:01:44]}  Qc4+ {[%clk 0:01:30]} 19. Kg2 {[%clk 0:01:31]}  Na5 {[%clk 0:01:29]} 20. Qb4 {[%clk 0:01:19]}  Nec6 {[%clk 0:01:23]} 21. Qb2 {[%clk 0:01:17]}  Nd8 {[%clk 0:01:13]} 22. Ne1 {[%clk 0:00:33]}  Ndb7 {[%clk 0:01:09]} 23. Bb4 {[%clk 0:00:23]}  Qe2 {[%clk 0:01:05]} 24. a4 {[%clk 0:00:19]}  Nc4 {[%clk 0:00:54]} 25. Qb3 {[%clk 0:00:19]}  Nba5 {[%clk 0:00:48]} 26. Bxa5 {[%clk 0:00:19]}  Nxa5 {[%clk 0:00:47]} 27. Qb4 {[%clk 0:00:19]}  Qc4 {[%clk 0:00:42]} 28. Qb2 {[%clk 0:00:18]}  O-O {[%clk 0:00:33]} 29. Rd1 {[%clk 0:00:18]}  Qc3 {[%clk 0:00:32]} 30. Qb5 {[%clk 0:00:16]}  Rc4 {[%clk 0:00:25]} 31. Nf3 {[%clk 0:00:13]}  Qxc2 {[%clk 0:00:22]} 32. Rd2 {[%clk 0:00:14]}  Qb3 {[%clk 0:00:20]} 33. Qd7 {[%clk 0:00:13]}  Qxa4 {[%clk 0:00:19]} 34. Qe7 {[%clk 0:00:11]}  Nb3 {[%clk 0:00:17]} 35. Rd3 {[%clk 0:00:10]}  Qb4 {[%clk 0:00:17]} 36. Qxa7 {[%clk 0:00:09]}  Nc1 {[%clk 0:00:15]} 37. Re3 {[%clk 0:00:07]}  Rc2 {[%clk 0:00:14]} 38. g5 {[%clk 0:00:05]}  Ne2 {[%clk 0:00:09]} 39. Rg4 {[%clk 0:00:04]}  Kh7 {[%clk 0:00:05]} 40. gxh6 {[%clk 0:00:04]}  gxh6 {[%clk 0:00:05]} 41. Nh4 {[%clk 0:00:00]}  Qe1 {[%clk 0:00:03]} 0-1

[Event "December 12 Early 2023"]
[Site "https://www.chess.com"]
[Date "2023.12.12"]
[Round "3"]
[White "Hoffmann, Asa"]
[Black "Jia, Haoxiang"]
[Result "0-1"]
[Board "108"]
[TimeControl "180+1"]
[WhiteFideId "2001470"]
[BlackFideId "8602999"]
[WhiteElo "2428"]
[BlackElo "2617"]
[WhiteTeam "USA"]
[BlackTeam "CHN"]
[WhiteClock "0:00:23"]
[BlackClock "0:00:22"]

1. d4 {[%clk 0:02:57]}  Nf6 {[%clk 0:02:59]} 2. Bg5 {[%clk 0:02:55]}  g6 {[%clk 0:02:50]} 3. Nc3 {[%clk 0:02:54]}  Bg7 {[%clk 0:02:49]} 4. e4 {[%clk 0:02:54]}  d6 {[%clk 0:02:50]} 5. f3 {[%clk 0:02:54]}  c6 {[%clk 0:02:47]} 6. Qd2 {[%clk 0:02:54]}  b5 {[%clk 0:02:47]} 7. O-O-O {[%clk 0:02:53]}  Nbd7 {[%clk 0:02:46]} 8. Kb1 {[%clk 0:02:52]}  Nb6 {[%clk 0:02:41]} 9. h4 {[%clk 0:02:49]}  h5 {[%clk 0:02:39]} 10. Nh3 {[%clk 0:02:48]}  b4 {[%clk 0:02:29]} 11. Ne2 {[%clk 0:02:44]}  a5 {[%clk 0:02:29]} 12. Nc1 {[%clk 0:02:44]}  Qc7 {[%clk 0:02:22]} 13. Be2 {[%clk 0:02:30]}  Na4 {[%clk 0:02:01]} 14. Nd3 {[%clk 0:02:17]}  c5 {[%clk 0:01:59]} 15. dxc5 {[%clk 0:02:13]}  dxc5 {[%clk 0:01:57]} 16. Ne5 {[%clk 0:02:03]}  O-O {[%clk 0:01:42]} 17. Bf4 {[%clk 0:01:57]}  Nxe4 {[%clk 0:01:37]} 18. fxe4 {[%clk 0:01:42]}  Bxe5 {[%clk 0:01:37]} 19. Bb5 {[%clk 0:01:14]}  Nxb2 {[%clk 0:01:16]} 20. Bxe5 {[%clk 0:01:06]}  Qxe5 {[%clk 0:01:12]} 21. Qd5 {[%clk 0:01:05]}  Qb8 {[%clk 0:00:39]} 22. Kxb2 {[%clk 0:00:59]}  Be6 {[%clk 0:00:36]} 23. Qxc5 {[%clk 0:00:54]}  Rc8 {[%clk 0:00:35]} 24. Bc6 {[%clk 0:00:53]}  Ra6 {[%clk 0:00:33]} 25. Qb5 {[%clk 0:00:48]}  Raxc6 {[%clk 0:00:30]} 26. Qxb8 {[%clk 0:00:47]}  Rxb8 {[%clk 0:00:31]} 27. Rd2 {[%clk 0:00:47]}  a4 {[%clk 0:00:28]} 28. Nf4 {[%clk 0:00:45]}  b3 {[%clk 0:00:25]} 29. cxb3 {[%clk 0:00:43]}  axb3 {[%clk 0:00:24]} 30. a4 {[%clk 0:00:38]}  Ra6 {[%clk 0:00:19]} 31. Nxe6 {[%clk 0:00:37]}  Rxe6 {[%clk 0:00:19]} 32. Ra1 {[%clk 0:00:35]}  Rxe4 {[%clk 0:00:18]} 33. a5 {[%clk 0:00:35]}  Ra8 {[%clk 0:00:19]} 34. a6 {[%clk 0:00:35]}  Ra7 {[%clk 0:00:19]} 35. Rd3 {[%clk 0:00:34]}  Re6 {[%clk 0:00:19]} 36. Rxb3 {[%clk 0:00:32]}  Rexa6 {[%clk 0:00:20]} 37. Rxa6 {[%clk 0:00:31]}  Rxa6 {[%clk 0:00:21]} 38. Rb7 {[%clk 0:00:31]}  e6 {[%clk 0:00:21]} 39. Kc3 {[%clk 0:00:31]}  Ra4 {[%clk 0:00:21]} 40. g3 {[%clk 0:00:30]}  Ra3+ {[%clk 0:00:21]} 41. Kd4 {[%clk 0:00:30]}  Rxg3 {[%clk 0:00:22]} 42. Ke5 {[%clk 0:00:23]}  Kg7 {[%clk 0:00:22]} 0-1

[Event "December 12 Early 2023"]
[Site "https://www.chess.com"]
[Date "2023.12.12"]
[Round "3"]
[White "Sahin, Sarp"]
[Black "Sahib Singh"]
[Result "1-0"]
[Board "113"]
[TimeControl "180+1"]
[WhiteFideId "51605066"]
[BlackFideId "25618342"]
[WhiteElo "2420"]
[BlackElo "2609"]
[WhiteTeam "TUR"]
[BlackTeam "IND"]
[WhiteClock "0:01:19"]
[BlackClock "0:00:00"]

1. d4 {[%clk 0:03:00]}  d5 {[%clk 0:02:59]} 2. Bf4 {[%clk 0:03:00]}  Nf6 {[%clk 0:02:59]} 3. e3 {[%clk 0:03:00]}  e6 {[%clk 0:02:59]} 4. Nf3 {[%clk 0:02:59]}  c5 {[%clk 0:02:59]} 5. c3 {[%clk 0:02:59]}  Nc6 {[%clk 0:02:57]} 6. Nbd2 {[%clk 0:02:59]}  cxd4 {[%clk 0:02:57]} 7. exd4 {[%clk 0:02:58]}  Nh5 {[%clk 0:02:57]} 8. Bg5 {[%clk 0:02:51]}  f6 {[%clk 0:02:57]} 9. Bh4 {[%clk 0:02:50]}  g6 {[%clk 0:02:53]} 10. Bd3 {[%clk 0:02:50]}  Bd6 {[%clk 0:02:46]} 11. Bg3 {[%clk 0:02:39]}  Nxg3 {[%clk 0:02:22]} 12. hxg3 {[%clk 0:02:40]}  Kf7 {[%clk 0:02:21]} 13. Qb3 {[%clk 0:02:29]}  a6 {[%clk 0:01:44]} 14. O-O-O {[%clk 0:02:24]}  b5 {[%clk 0:01:43]} 15. Rde1 {[%clk 0:02:18]}  Bd7 {[%clk 0:01:42]} 16. Nh4 {[%clk 0:02:16]}  Na5 {[%clk 0:01:39]} 17. Qc2 {[%clk 0:02:13]}  Rg8 {[%clk 0:01:33]} 18. Nxg6 {[%clk 0:02:07]}  hxg6 {[%clk 0:01:32]} 19. Rh7+ {[%clk 0:02:04]}  Kf8 {[%clk 0:01:33]} 20. Bxg6 {[%clk 0:02:02]}  Be8 {[%clk 0:01:30]} 21. Bxe8 {[%clk 0:01:59]}  Qxe8 {[%clk 0:01:31]} 22. Reh1 {[%clk 0:01:55]}  Rc8 {[%clk 0:00:46]} 23. Rh8 {[%clk 0:01:49]}  Rc7 {[%clk 0:00:35]} 24. R1h6 {[%clk 0:01:38]}  Qf7 {[%clk 0:00:06]} 25. Nf3 {[%clk 0:01:23]}  f5 {[%clk 0:00:06]} 26. Ng5 {[%clk 0:01:21]}  Qe7 {[%clk 0:00:00]} 27. Nxe6+ {[%clk 0:01:19]} 1-0

[Event "December 12 Early 2023"]
[Site "https://www.chess.com"]
[Date "2023.12.12"]
[Round "3"]
[White "Garrido, Denis"]
[Black "Maltsevskaya, Aleksandra"]
[Result "1-0"]
[Board "117"]
[TimeControl "180+1"]
[WhiteFideId "601217"]
[BlackFideId "24174041"]
[WhiteElo "2415"]
[BlackElo "2602"]
[WhiteTeam "FRA"]
[BlackTeam "POL"]
[WhiteClock "0:00:07"]
[BlackClock "0:00:00"]

1. d4 {[%clk 0:03:00]}  Nf6 {[%clk 0:02:53]} 2. c4 {[%clk 0:02:59]}  g6 {[%clk 0:02:53]} 3. Nc3 {[%clk 0:02:58]}  Bg7 {[%clk 0:02:54]} 4. Nf3 {[%clk 0:02:58]}  d6 {[%clk 0:02:55]} 5. Bf4 {[%clk 0:02:57]}  O-O {[%clk 0:02:56]} 6. h3 {[%clk 0:02:57]}  b6 {[%clk 0:02:56]} 7. e3 {[%clk 0:02:58]}  Bb7 {[%clk 0:02:57]} 8. Be2 {[%clk 0:02:57]}  Nbd7 {[%clk 0:02:57]} 9. Qc2 {[%clk 0:02:58]}  e5 {[%clk 0:02:54]} 10. dxe5 {[%clk 0:02:56]}  dxe5 {[%clk 0:02:55]} 11. Bg3 {[%clk 0:02:55]}  Qe7 {[%clk 0:02:46]} 12. O-O {[%clk 0:02:50]}  e4 {[%clk 0:02:32]} 13. Nd2 {[%clk 0:02:18]}  Nc5 {[%clk 0:02:13]} 14. Rad1 {[%clk 0:01:35]}  Rad8 {[%clk 0:02:09]} 15. Nb5 {[%clk 0:01:29]}  c6 {[%clk 0:02:08]} 16. Nd4 {[%clk 0:01:26]}  Nd3 {[%clk 0:02:04]} 17. Bh4 {[%clk 0:01:19]}  c5 {[%clk 0:01:05]} 18. Nb5 {[%clk 0:01:14]}  Rfe8 {[%clk 0:00:29]} 19. a3 {[%clk 0:00:20]}  Qe5 {[%clk 0:00:20]} 20. Nc3 {[%clk 0:00:16]}  g5 {[%clk 0:00:20]} 21. Bg3 {[%clk 0:00:17]}  Qf5 {[%clk 0:00:20]} 22. f4 {[%clk 0:00:14]}  gxf4 {[%clk 0:00:15]} 23. exf4 {[%clk 0:00:13]}  Nh5 {[%clk 0:00:12]} 24. Bxh5 {[%clk 0:00:12]}  Qxh5 {[%clk 0:00:13]} 25. Ndxe4 {[%clk 0:00:12]}  Nxb2 {[%clk 0:00:08]} 26. Rxd8 {[%clk 0:00:12]}  Rxd8 {[%clk 0:00:09]} 27. Qxb2 {[%clk 0:00:11]}  Bxe4 {[%clk 0:00:09]} 28. Qe2 {[%clk 0:00:10]}  Bd4+ {[%clk 0:00:09]} 29. Kh2 {[%clk 0:00:09]}  Qxe2 {[%clk 0:00:06]} 30. Nxe2 {[%clk 0:00:08]}  Bd3 {[%clk 0:00:07]} 31. Re1 {[%clk 0:00:08]}  Bxc4 {[%clk 0:00:07]} 32. Nxd4 {[%clk 0:00:08]}  cxd4 {[%clk 0:00:08]} 33. f5 {[%clk 0:00:08]}  f6 {[%clk 0:00:08]} 34. Bf4 {[%clk 0:00:07]}  d3 {[%clk 0:00:08]} 35. Bd2 {[%clk 0:00:07]}  Kf7 {[%clk 0:00:07]} 36. Re4 {[%clk 0:00:07]}  b5 {[%clk 0:00:07]} 37. Rh4 {[%clk 0:00:07]}  Kg7 {[%clk 0:00:06]} 38. Re4 {[%clk 0:00:07]}  Rd7 {[%clk 0:00:05]} 39. Kg3 {[%clk 0:00:08]}  Bd5 {[%clk 0:00:05]} 40. Rd4 {[%clk 0:00:07]}  Bc6 {[%clk 0:00:05]} 41. Rg4+ {[%clk 0:00:06]}  Kf7 {[%clk 0:00:05]} 42. Kf4 {[%clk 0:00:07]}  Rd4+ {[%clk 0:00:05]} 43. Ke3 {[%clk 0:00:07]}  Rxg4 {[%clk 0:00:00]} 44. hxg4 {[%clk 0:00:07]} 1-0

[Event "December 12 Early 2023"]
[Site "https://www.chess.com"]
[Date "2023.12.12"]
[Round "3"]
[White "Zeneli, Klendi"]
[Black "Hajiyev, Kanan"]
[Result "1-0"]
[Board "130"]
[TimeControl "180+1"]
[WhiteFideId "4706609"]
[BlackFideId "13404148"]
[WhiteElo "2344"]
[BlackElo "2577"]
[WhiteTeam "ALB"]
[BlackTeam "AZE"]
[WhiteClock "0:00:48"]
[BlackClock "0:00:23"]

1. e4 {[%clk 0:03:00]}  c6 {[%clk 0:02:31]} 2. d4 {[%clk 0:02:59]}  d5 {[%clk 0:02:32]} 3. e5 {[%clk 0:03:00]}  a6 {[%clk 0:02:32]} 4. Bd3 {[%clk 0:02:57]}  c5 {[%clk 0:02:31]} 5. dxc5 {[%clk 0:02:57]}  e6 {[%clk 0:02:32]} 6. b4 {[%clk 0:02:56]}  Nc6 {[%clk 0:02:30]} 7. c3 {[%clk 0:02:51]}  Nxe5 {[%clk 0:02:29]} 8. Nf3 {[%clk 0:02:48]}  Nxd3+ {[%clk 0:02:28]} 9. Qxd3 {[%clk 0:02:49]}  Nf6 {[%clk 0:02:25]} 10. O-O {[%clk 0:02:48]}  Be7 {[%clk 0:02:25]} 11. Bf4 {[%clk 0:02:48]}  O-O {[%clk 0:02:26]} 12. Nbd2 {[%clk 0:02:48]}  Bd7 {[%clk 0:02:21]} 13. Rfd1 {[%clk 0:02:48]}  Ba4 {[%clk 0:02:20]} 14. Nb3 {[%clk 0:02:46]}  a5 {[%clk 0:02:19]} 15. Rd2 {[%clk 0:02:37]}  Bxb3 {[%clk 0:01:57]} 16. axb3 {[%clk 0:02:36]}  axb4 {[%clk 0:01:58]} 17. Rxa8 {[%clk 0:02:35]}  Qxa8 {[%clk 0:01:59]} 18. cxb4 {[%clk 0:02:35]}  Ne4 {[%clk 0:01:52]} 19. Rd1 {[%clk 0:02:32]}  Qa3 {[%clk 0:01:50]} 20. Bd2 {[%clk 0:02:03]}  Bf6 {[%clk 0:01:33]} 21. Be1 {[%clk 0:02:00]}  Ra8 {[%clk 0:01:32]} 22. Qb5 {[%clk 0:01:58]}  Qxb3 {[%clk 0:00:58]} 23. Qxb7 {[%clk 0:01:58]}  Rf8 {[%clk 0:00:59]} 24. Rc1 {[%clk 0:01:47]}  Qb2 {[%clk 0:00:57]} 25. Rd1 {[%clk 0:01:22]}  Nxc5 {[%clk 0:00:46]} 26. Qc6 {[%clk 0:01:15]}  Ne4 {[%clk 0:00:44]} 27. b5 {[%clk 0:01:14]}  Bc3 {[%clk 0:00:41]} 28. b6 {[%clk 0:00:50]}  Bxe1 {[%clk 0:00:40]} 29. Rxe1 {[%clk 0:00:51]}  Qxf2+ {[%clk 0:00:40]} 30. Kh1 {[%clk 0:00:52]}  Rb8 {[%clk 0:00:34]} 31. b7 {[%clk 0:00:48]}  Qa7 {[%clk 0:00:23]} 32. Qc8+ {[%clk 0:00:48]} 1-0

[Event "December 12 Early 2023"]
[Site "https://www.chess.com"]
[Date "2023.12.12"]
[Round "3"]
[White "Botea, David-Alexandru"]
[Black "Martinez Fernandez, Adrian"]
[Result "1-0"]
[Board "132"]
[TimeControl "180+1"]
[WhiteFideId "1263293"]
[BlackFideId "32049048"]
[WhiteElo "2342"]
[BlackElo "2564"]
[WhiteTeam "ROU"]
[BlackTeam "ESP"]
[WhiteClock "0:00:30"]
[BlackClock "0:00:37"]

1. c4 {[%clk 0:03:00]}  b6 {[%clk 0:02:56]} 2. Nf3 {[%clk 0:03:00]}  Bb7 {[%clk 0:02:57]} 3. g3 {[%clk 0:03:01]}  e5 {[%clk 0:02:57]} 4. Bg2 {[%clk 0:03:01]}  Be7 {[%clk 0:02:38]} 5. O-O {[%clk 0:03:01]}  d6 {[%clk 0:02:39]} 6. Nc3 {[%clk 0:03:00]}  Nd7 {[%clk 0:02:39]} 7. d4 {[%clk 0:02:59]}  h5 {[%clk 0:02:38]} 8. e4 {[%clk 0:02:58]}  h4 {[%clk 0:02:36]} 9. Nd5 {[%clk 0:02:50]}  hxg3 {[%clk 0:02:23]} 10. fxg3 {[%clk 0:02:42]}  Bxd5 {[%clk 0:02:19]} 11. exd5 {[%clk 0:02:41]}  Bf6 {[%clk 0:02:17]} 12. dxe5 {[%clk 0:02:34]}  Nxe5 {[%clk 0:02:18]} 13. Qe2 {[%clk 0:02:28]}  Qe7 {[%clk 0:02:14]} 14. Nxe5 {[%clk 0:02:17]}  Bxe5 {[%clk 0:02:15]} 15. Be3 {[%clk 0:02:16]}  Nf6 {[%clk 0:02:14]} 16. Rae1 {[%clk 0:02:15]}  O-O-O {[%clk 0:02:06]} 17. c5 {[%clk 0:02:10]}  dxc5 {[%clk 0:01:50]} 18. Qa6+ {[%clk 0:02:06]}  Kb8 {[%clk 0:01:50]} 19. Bf4 {[%clk 0:01:59]}  Bd4+ {[%clk 0:01:49]} 20. Kh1 {[%clk 0:01:59]}  Qd7 {[%clk 0:01:37]} 21. d6 {[%clk 0:01:57]}  c6 {[%clk 0:01:38]} 22. Re7 {[%clk 0:01:36]}  Nd5 {[%clk 0:01:38]} 23. Rxd7 {[%clk 0:01:33]}  Rxd7 {[%clk 0:01:39]} 24. Bxd5 {[%clk 0:01:15]}  cxd5 {[%clk 0:01:40]} 25. Qb5 {[%clk 0:01:15]}  Rhd8 {[%clk 0:01:41]} 26. Re1 {[%clk 0:01:14]}  Bf6 {[%clk 0:01:30]} 27. Re8 {[%clk 0:01:09]}  Kb7 {[%clk 0:01:20]} 28. Rxd8 {[%clk 0:00:51]}  Rxd8 {[%clk 0:01:21]} 29. a4 {[%clk 0:00:46]}  g5 {[%clk 0:01:19]} 30. Be3 {[%clk 0:00:31]}  d4 {[%clk 0:01:10]} 31. Bd2 {[%clk 0:00:31]}  Rxd6 {[%clk 0:01:11]} 32. Qe8 {[%clk 0:00:31]}  Ka6 {[%clk 0:00:37]} 33. Qc8# {[%clk 0:00:30]} 1-0

[Event "December 12 Early 2023"]
[Site "https://www.chess.com"]
[Date "2023.12.12"]
[Round "3"]
[White "Tarasova, Viktoriya"]
[Black "Kononenko, Dmitry"]
[Result "0-1"]
[Board "138"]
[TimeControl "180+1"]
[WhiteFideId "4175840"]
[BlackFideId "14113538"]
[WhiteElo "2317"]
[BlackElo "2546"]
[WhiteTeam "RUS"]
[BlackTeam "UKR"]
[WhiteClock "0:00:04"]
[BlackClock "0:01:04"]

1. d4 {[%clk 0:03:00]}  Nf6 {[%clk 0:02:58]} 2. c4 {[%clk 0:03:00]}  c5 {[%clk 0:02:59]} 3. d5 {[%clk 0:03:00]}  b5 {[%clk 0:02:59]} 4. cxb5 {[%clk 0:02:59]}  a6 {[%clk 0:03:00]} 5. bxa6 {[%clk 0:02:59]}  g6 {[%clk 0:03:00]} 6. Nc3 {[%clk 0:02:58]}  Bg7 {[%clk 0:03:01]} 7. Nf3 {[%clk 0:02:58]}  O-O {[%clk 0:03:01]} 8. e4 {[%clk 0:02:58]}  Qa5 {[%clk 0:03:02]} 9. Bd2 {[%clk 0:02:56]}  Bxa6 {[%clk 0:03:01]} 10. Be2 {[%clk 0:02:53]}  Bxe2 {[%clk 0:03:01]} 11. Qxe2 {[%clk 0:02:52]}  Qa6 {[%clk 0:03:02]} 12. Qxa6 {[%clk 0:02:30]}  Nxa6 {[%clk 0:03:03]} 13. Ke2 {[%clk 0:02:30]}  e6 {[%clk 0:03:02]} 14. dxe6 {[%clk 0:02:27]}  fxe6 {[%clk 0:03:02]} 15. Bg5 {[%clk 0:02:09]}  Rfb8 {[%clk 0:02:55]} 16. Rab1 {[%clk 0:02:02]}  Nb4 {[%clk 0:02:52]} 17. a3 {[%clk 0:01:51]}  Nc6 {[%clk 0:02:52]} 18. Rhd1 {[%clk 0:01:50]}  h6 {[%clk 0:02:23]} 19. Bf4 {[%clk 0:01:32]}  Rb3 {[%clk 0:02:16]} 20. e5 {[%clk 0:01:19]}  Ng4 {[%clk 0:02:15]} 21. Rxd7 {[%clk 0:01:10]}  Ngxe5 {[%clk 0:02:15]} 22. Nxe5 {[%clk 0:01:09]}  Nxe5 {[%clk 0:02:16]} 23. Bxe5 {[%clk 0:01:01]}  Bxe5 {[%clk 0:02:17]} 24. Ne4 {[%clk 0:01:01]}  c4 {[%clk 0:02:08]} 25. f4 {[%clk 0:00:43]}  Bxb2 {[%clk 0:01:55]} 26. Rc7 {[%clk 0:00:42]}  c3 {[%clk 0:01:40]} 27. Nf6+ {[%clk 0:00:28]}  Kf8 {[%clk 0:01:39]} 28. Nh7+ {[%clk 0:00:19]}  Ke8 {[%clk 0:01:39]} 29. Nf6+ {[%clk 0:00:14]}  Kd8 {[%clk 0:01:37]} 30. Rd7+ {[%clk 0:00:13]}  Kc8 {[%clk 0:01:36]} 31. Kd3 {[%clk 0:00:11]}  c2+ {[%clk 0:01:20]} 32. Kxc2 {[%clk 0:00:11]}  Bxf6 {[%clk 0:01:21]} 33. Rxb3 {[%clk 0:00:07]}  Kxd7 {[%clk 0:01:21]} 34. Rb7+ {[%clk 0:00:07]}  Kd6 {[%clk 0:01:19]} 35. Rb6+ {[%clk 0:00:07]}  Kd5 {[%clk 0:01:18]} 36. Kb3 {[%clk 0:00:06]}  Bd4 {[%clk 0:01:14]} 37. Rb5+ {[%clk 0:00:06]}  Bc5 {[%clk 0:01:14]} 38. a4 {[%clk 0:00:05]}  Rf8 {[%clk 0:01:11]} 39. g3 {[%clk 0:00:04]}  g5 {[%clk 0:01:11]} 40. fxg5 {[%clk 0:00:04]}  Rf3+ {[%clk 0:01:10]} 41. Kc2 {[%clk 0:00:04]}  hxg5 {[%clk 0:01:10]} 42. Rb7 {[%clk 0:00:04]}  Rf2+ {[%clk 0:01:08]} 43. Kb3 {[%clk 0:00:05]}  Rxh2 {[%clk 0:01:08]} 44. a5 {[%clk 0:00:05]}  Rh3 {[%clk 0:01:06]} 45. a6 {[%clk 0:00:06]}  Rxg3+ {[%clk 0:01:06]} 46. Ka4 {[%clk 0:00:06]}  Ra3+ {[%clk 0:01:04]} 47. Kb5 {[%clk 0:00:04]}  Rb3+ {[%clk 0:01:04]} 0-1